[Event "Titled Tuesday Blitz May 16 Early 2023"]
[White "Manukyan, Sargis A."]
[Black "Gurevich, Dmitry"]
[WhiteFideId "13303970"]
[BlackFideId "2000407"]
[WhiteElo "2187"]
[BlackElo "2506"]
[Result "1-0"]
[Round "06"]
[TimeControl "180+2"]
[Date "2023.05.16"]
[WhiteClock "0:00:43"]
[BlackClock "0:00:00"]

1. d4 {[%clk 0:03:00]}  Nf6 {[%clk 0:02:58]} 2. c4 {[%clk 0:03:01]}  a6 {[%clk 0:02:57]} 3. Nc3 {[%clk 0:03:00]}  c5 {[%clk 0:02:57]} 4. d5 {[%clk 0:03:01]}  b5 {[%clk 0:02:56]} 5. cxb5 {[%clk 0:03:01]}  axb5 {[%clk 0:02:56]} 6. Nxb5 {[%clk 0:02:58]}  Qa5+ {[%clk 0:02:55]} 7. Nc3 {[%clk 0:02:59]}  Bb7 {[%clk 0:02:55]} 8. f3 {[%clk 0:02:56]}  Nxd5 {[%clk 0:02:52]} 9. Bd2 {[%clk 0:02:56]}  Nxc3 {[%clk 0:02:22]} 10. Bxc3 {[%clk 0:02:57]}  Qb6 {[%clk 0:02:22]} 11. e4 {[%clk 0:02:56]}  e6 {[%clk 0:02:18]} 12. Bc4 {[%clk 0:02:53]}  Nc6 {[%clk 0:02:07]} 13. Ne2 {[%clk 0:02:53]}  Na5 {[%clk 0:02:00]} 14. Bd3 {[%clk 0:02:49]}  c4 {[%clk 0:01:59]} 15. Bc2 {[%clk 0:02:48]}  Bc5 {[%clk 0:01:54]} 16. Bxg7 {[%clk 0:02:47]}  Rg8 {[%clk 0:01:46]} 17. Bd4 {[%clk 0:02:38]}  Rxg2 {[%clk 0:01:42]} 18. Kf1 {[%clk 0:02:23]}  Rg6 {[%clk 0:01:38]} 19. Bxc5 {[%clk 0:02:22]}  Qxc5 {[%clk 0:01:36]} 20. Qd4 {[%clk 0:02:22]}  Qxd4 {[%clk 0:01:27]} 21. Nxd4 {[%clk 0:02:23]}  Ke7 {[%clk 0:01:20]} 22. Kf2 {[%clk 0:02:19]}  Nc6 {[%clk 0:01:14]} 23. Nxc6+ {[%clk 0:02:05]}  Bxc6 {[%clk 0:01:14]} 24. a3 {[%clk 0:02:05]}  Rb8 {[%clk 0:01:08]} 25. Rab1 {[%clk 0:02:03]}  Rf6 {[%clk 0:01:00]} 26. Ke3 {[%clk 0:02:00]}  d5 {[%clk 0:00:55]} 27. b3 {[%clk 0:01:57]}  dxe4 {[%clk 0:00:39]} 28. fxe4 {[%clk 0:01:56]}  cxb3 {[%clk 0:00:35]} 29. Rxb3 {[%clk 0:01:57]}  Rxb3+ {[%clk 0:00:33]} 30. Bxb3 {[%clk 0:01:58]}  e5 {[%clk 0:00:31]} 31. Rc1 {[%clk 0:01:47]}  Kd6 {[%clk 0:00:27]} 32. Rd1+ {[%clk 0:01:43]}  Kc7 {[%clk 0:00:26]} 33. Bd5 {[%clk 0:01:43]}  Bxd5 {[%clk 0:00:25]} 34. Rxd5 {[%clk 0:01:44]}  Re6 {[%clk 0:00:24]} 35. a4 {[%clk 0:01:44]}  f6 {[%clk 0:00:24]} 36. a5 {[%clk 0:01:44]}  Rc6 {[%clk 0:00:23]} 37. Kf3 {[%clk 0:01:42]}  Rc4 {[%clk 0:00:21]} 38. Rb5 {[%clk 0:01:38]}  Ra4 {[%clk 0:00:20]} 39. h4 {[%clk 0:01:32]}  f5 {[%clk 0:00:19]} 40. exf5 {[%clk 0:01:28]}  Rf4+ {[%clk 0:00:17]} 41. Ke3 {[%clk 0:00:59]}  Rxf5 {[%clk 0:00:15]} 42. a6 {[%clk 0:00:58]}  Rf1 {[%clk 0:00:14]} 43. Rb7+ {[%clk 0:00:43]}  Kc6 {[%clk 0:00:12]} 44. Rxh7 {[%clk 0:00:43]}  Ra1 {[%clk 0:00:08]} 45. Ke4 {[%clk 0:00:43]}  Kd6 {[%clk 0:00:00]} 46. Rh6+ {[%clk 0:00:43]} 1-0


[Site "https://www.chess.com"]

[Event "Titled Tuesday Blitz May 16 Early 2023"]
[White "Novik, Maxim"]
[Black "Mohammed, Zozek Salah Mohammed"]
[WhiteFideId "4102924"]
[BlackFideId "4803361"]
[WhiteElo "2287"]
[BlackElo "2211"]
[Result "1-0"]
[Round "06"]
[TimeControl "180+2"]
[Date "2023.05.16"]
[WhiteClock "0:01:48"]
[BlackClock "0:01:46"]

1. e4 {[%clk 0:03:00]}  e6 {[%clk 0:02:55]} 2. d3 {[%clk 0:03:00]}  d5 {[%clk 0:02:53]} 3. Nd2 {[%clk 0:03:00]}  c5 {[%clk 0:02:54]} 4. Ngf3 {[%clk 0:03:01]}  Nc6 {[%clk 0:02:54]} 5. g3 {[%clk 0:03:01]}  Nf6 {[%clk 0:02:55]} 6. Bg2 {[%clk 0:03:02]}  Be7 {[%clk 0:02:55]} 7. O-O {[%clk 0:03:02]}  O-O {[%clk 0:02:56]} 8. Re1 {[%clk 0:03:02]}  Qc7 {[%clk 0:02:55]} 9. e5 {[%clk 0:02:59]}  Nd7 {[%clk 0:02:55]} 10. Qe2 {[%clk 0:02:59]}  b5 {[%clk 0:02:55]} 11. Nf1 {[%clk 0:02:59]}  a5 {[%clk 0:02:55]} 12. h4 {[%clk 0:02:59]}  Bb7 {[%clk 0:02:53]} 13. h5 {[%clk 0:02:59]}  Rfc8 {[%clk 0:02:48]} 14. h6 {[%clk 0:02:59]}  g6 {[%clk 0:02:47]} 15. N1h2 {[%clk 0:02:59]}  d4 {[%clk 0:02:46]} 16. Ng4 {[%clk 0:02:59]}  Nb4 {[%clk 0:02:44]} 17. a3 {[%clk 0:02:52]}  Nd5 {[%clk 0:02:43]} 18. Bg5 {[%clk 0:02:48]}  Bxg5 {[%clk 0:02:37]} 19. Nxg5 {[%clk 0:02:48]}  Ne7 {[%clk 0:02:33]} 20. Bxb7 {[%clk 0:02:18]}  Qxb7 {[%clk 0:02:34]} 21. Ne4 {[%clk 0:02:12]}  Nf5 {[%clk 0:02:20]} 22. Qf3 {[%clk 0:02:07]}  Qc6 {[%clk 0:02:13]} 23. Qf4 {[%clk 0:02:07]}  c4 {[%clk 0:02:07]} 24. Ngf6+ {[%clk 0:02:03]}  Nxf6 {[%clk 0:02:06]} 25. Nxf6+ {[%clk 0:02:03]}  Kh8 {[%clk 0:02:06]} 26. g4 {[%clk 0:02:03]}  Nh4 {[%clk 0:02:02]} 27. Ne4 {[%clk 0:01:55]}  Nf5 {[%clk 0:01:54]} 28. gxf5 {[%clk 0:01:52]}  exf5 {[%clk 0:01:55]} 29. Nf6 {[%clk 0:01:50]}  cxd3 {[%clk 0:01:46]} 30. cxd3 {[%clk 0:01:48]} 1-0


[Site "https://www.chess.com"]

[Event "Titled Tuesday Blitz May 16 Early 2023"]
[White "Bogaudinov, Rushan"]
[Black "Orlov, Georgi"]
[WhiteFideId "4129288"]
[BlackFideId "2011271"]
[WhiteElo "1941"]
[BlackElo "2619"]
[Result "0-1"]
[Round "06"]
[TimeControl "180+2"]
[Date "2023.05.16"]
[WhiteClock "0:00:05"]
[BlackClock "0:00:46"]

1. e4 {[%clk 0:03:00]}  d6 {[%clk 0:02:59]} 2. Nf3 {[%clk 0:02:59]}  Nf6 {[%clk 0:02:58]} 3. Nc3 {[%clk 0:02:59]}  c6 {[%clk 0:02:57]} 4. d4 {[%clk 0:02:57]}  Bg4 {[%clk 0:02:57]} 5. Be2 {[%clk 0:02:56]}  e6 {[%clk 0:02:57]} 6. O-O {[%clk 0:02:56]}  Be7 {[%clk 0:02:57]} 7. b3 {[%clk 0:02:54]}  d5 {[%clk 0:02:57]} 8. e5 {[%clk 0:02:51]}  Nfd7 {[%clk 0:02:55]} 9. h3 {[%clk 0:02:49]}  Bxf3 {[%clk 0:02:50]} 10. Bxf3 {[%clk 0:02:50]}  c5 {[%clk 0:02:50]} 11. Nxd5 {[%clk 0:02:44]}  exd5 {[%clk 0:02:47]} 12. Bxd5 {[%clk 0:02:45]}  Nc6 {[%clk 0:02:47]} 13. e6 {[%clk 0:02:44]}  fxe6 {[%clk 0:02:43]} 14. Bxe6 {[%clk 0:02:43]}  Nf6 {[%clk 0:02:40]} 15. d5 {[%clk 0:02:12]}  Nd4 {[%clk 0:02:38]} 16. Bb2 {[%clk 0:01:58]}  Nxe6 {[%clk 0:02:15]} 17. dxe6 {[%clk 0:01:23]}  O-O {[%clk 0:02:15]} 18. Qe2 {[%clk 0:01:21]}  Qb6 {[%clk 0:02:09]} 19. c4 {[%clk 0:01:17]}  Rad8 {[%clk 0:01:59]} 20. Rad1 {[%clk 0:01:13]}  Rxd1 {[%clk 0:01:54]} 21. Rxd1 {[%clk 0:01:13]}  Rd8 {[%clk 0:01:55]} 22. Rxd8+ {[%clk 0:01:09]}  Qxd8 {[%clk 0:01:54]} 23. f4 {[%clk 0:01:08]}  Qd6 {[%clk 0:01:43]} 24. g3 {[%clk 0:01:03]}  Qc6 {[%clk 0:01:40]} 25. Bxf6 {[%clk 0:00:50]}  Bxf6 {[%clk 0:01:35]} 26. e7 {[%clk 0:00:46]}  Kf7 {[%clk 0:01:27]} 27. e8=Q+ {[%clk 0:00:37]}  Qxe8 {[%clk 0:01:25]} 28. Qh5+ {[%clk 0:00:37]}  g6 {[%clk 0:01:15]} 29. Qxh7+ {[%clk 0:00:27]}  Bg7 {[%clk 0:01:14]} 30. Kf2 {[%clk 0:00:20]}  Qe4 {[%clk 0:01:10]} 31. h4 {[%clk 0:00:19]}  Qc2+ {[%clk 0:01:07]} 32. Kg1 {[%clk 0:00:17]}  Qb1+ {[%clk 0:01:02]} 33. Kg2 {[%clk 0:00:17]}  Qxa2+ {[%clk 0:01:03]} 34. Kh3 {[%clk 0:00:17]}  Qc2 {[%clk 0:00:55]} 35. h5 {[%clk 0:00:06]}  Qe4 {[%clk 0:00:49]} 36. Kh4 {[%clk 0:00:04]}  Qh1+ {[%clk 0:00:48]} 37. Kg5 {[%clk 0:00:03]}  Qxh5+ {[%clk 0:00:47]} 38. Qxh5 {[%clk 0:00:04]}  gxh5 {[%clk 0:00:46]} 39. Kxh5 {[%clk 0:00:05]}  a6 {[%clk 0:00:45]} 40. Kg5 {[%clk 0:00:05]}  b5 {[%clk 0:00:46]} 41. Kf5 {[%clk 0:00:05]}  bxc4 {[%clk 0:00:45]} 42. bxc4 {[%clk 0:00:06]}  a5 {[%clk 0:00:45]} 43. Ke4 {[%clk 0:00:07]}  a4 {[%clk 0:00:45]} 44. Kd3 {[%clk 0:00:07]}  a3 {[%clk 0:00:46]} 45. Kc2 {[%clk 0:00:05]}  a2 {[%clk 0:00:46]} 0-1


[Site "https://www.chess.com"]

[Event "Titled Tuesday Blitz May 16 Early 2023"]
[White "hakanazeri2"]
[Black "Fan_Of_Chucky"]
[WhiteElo "2612"]
[BlackElo "2376"]
[Result "1-0"]
[Round "06"]
[TimeControl "180+2"]
[Date "2023.05.16"]
[WhiteClock "0:00:44"]
[BlackClock "0:00:05"]

1. e4 {[%clk 0:02:53]}  c5 {[%clk 0:02:57]} 2. Nf3 {[%clk 0:02:46]}  Nc6 {[%clk 0:02:57]} 3. d4 {[%clk 0:02:46]}  cxd4 {[%clk 0:02:58]} 4. Nxd4 {[%clk 0:02:46]}  Nf6 {[%clk 0:02:59]} 5. Nc3 {[%clk 0:02:44]}  d6 {[%clk 0:02:59]} 6. Bg5 {[%clk 0:02:43]}  e6 {[%clk 0:02:52]} 7. Qd2 {[%clk 0:02:40]}  a6 {[%clk 0:02:47]} 8. O-O-O {[%clk 0:02:40]}  Be7 {[%clk 0:02:46]} 9. f4 {[%clk 0:02:40]}  Bd7 {[%clk 0:02:44]} 10. Be2 {[%clk 0:02:33]}  b5 {[%clk 0:02:44]} 11. Bf3 {[%clk 0:02:29]}  Rc8 {[%clk 0:02:44]} 12. Nxc6 {[%clk 0:02:28]}  Bxc6 {[%clk 0:02:44]} 13. e5 {[%clk 0:02:08]}  Bxf3 {[%clk 0:02:43]} 14. gxf3 {[%clk 0:02:07]}  dxe5 {[%clk 0:02:43]} 15. fxe5 {[%clk 0:02:08]}  Qxd2+ {[%clk 0:02:22]} 16. Rxd2 {[%clk 0:01:54]}  Nd7 {[%clk 0:02:05]} 17. Bxe7 {[%clk 0:01:53]}  Kxe7 {[%clk 0:02:06]} 18. f4 {[%clk 0:01:54]}  Nc5 {[%clk 0:01:54]} 19. Rhd1 {[%clk 0:01:51]}  Rhd8 {[%clk 0:01:51]} 20. Rxd8 {[%clk 0:01:48]}  Rxd8 {[%clk 0:01:51]} 21. Rxd8 {[%clk 0:01:49]}  Kxd8 {[%clk 0:01:51]} 22. b4 {[%clk 0:01:50]}  Nd7 {[%clk 0:01:39]} 23. a4 {[%clk 0:01:49]}  bxa4 {[%clk 0:01:36]} 24. Nxa4 {[%clk 0:01:50]}  f6 {[%clk 0:01:25]} 25. exf6 {[%clk 0:01:49]}  gxf6 {[%clk 0:01:26]} 26. c4 {[%clk 0:01:48]}  Kc7 {[%clk 0:01:21]} 27. Kd2 {[%clk 0:01:46]}  Nb6 {[%clk 0:01:12]} 28. Nb2 {[%clk 0:01:25]}  Kc6 {[%clk 0:01:01]} 29. Kd3 {[%clk 0:01:24]}  Nd7 {[%clk 0:00:58]} 30. Kd4 {[%clk 0:01:22]}  e5+ {[%clk 0:00:55]} 31. fxe5 {[%clk 0:01:23]}  Nxe5 {[%clk 0:00:56]} 32. h3 {[%clk 0:01:18]}  Nf3+ {[%clk 0:00:56]} 33. Ke4 {[%clk 0:01:17]}  Ng5+ {[%clk 0:00:56]} 34. Kf5 {[%clk 0:01:17]}  Nxh3 {[%clk 0:00:57]} 35. Kxf6 {[%clk 0:01:18]}  h5 {[%clk 0:00:50]} 36. Nd3 {[%clk 0:01:15]}  h4 {[%clk 0:00:46]} 37. Kf5 {[%clk 0:01:08]}  Ng1 {[%clk 0:00:27]} 38. Kg4 {[%clk 0:01:08]}  h3 {[%clk 0:00:26]} 39. Kg3 {[%clk 0:01:09]}  h2 {[%clk 0:00:15]} 40. Kxh2 {[%clk 0:01:07]}  Nf3+ {[%clk 0:00:16]} 41. Kg3 {[%clk 0:01:07]}  Nd2 {[%clk 0:00:16]} 42. Ne5+ {[%clk 0:01:07]}  Kd6 {[%clk 0:00:11]} 43. Kf4 {[%clk 0:01:07]}  Nxc4 {[%clk 0:00:04]} 44. Nxc4+ {[%clk 0:01:06]}  Kd5 {[%clk 0:00:04]} 45. Na5 {[%clk 0:00:58]}  Kd4 {[%clk 0:00:04]} 46. Kf5 {[%clk 0:00:58]}  Kc3 {[%clk 0:00:05]} 47. Nc6 {[%clk 0:00:58]}  Kc4 {[%clk 0:00:05]} 48. Ke5 {[%clk 0:00:58]}  Kb5 {[%clk 0:00:04]} 49. Kd5 {[%clk 0:00:58]}  Kb6 {[%clk 0:00:03]} 50. Kd6 {[%clk 0:00:51]}  Kb5 {[%clk 0:00:03]} 51. Kc7 {[%clk 0:00:51]}  a5 {[%clk 0:00:01]} 52. bxa5 {[%clk 0:00:51]}  Ka6 {[%clk 0:00:01]} 53. Kd6 {[%clk 0:00:50]}  Kb5 {[%clk 0:00:01]} 54. Kd5 {[%clk 0:00:50]}  Ka6 {[%clk 0:00:02]} 55. Kc5 {[%clk 0:00:51]}  Kb7 {[%clk 0:00:02]} 56. Kb5 {[%clk 0:00:47]}  Ka8 {[%clk 0:00:03]} 57. Nd4 {[%clk 0:00:44]}  Ka7 {[%clk 0:00:04]} 58. Nb3 {[%clk 0:00:44]}  Ka8 {[%clk 0:00:05]} 59. Nc5 {[%clk 0:00:45]}  Ka7 {[%clk 0:00:03]} 60. Kc6 {[%clk 0:00:45]}  Ka8 {[%clk 0:00:04]} 61. Kb6 {[%clk 0:00:46]}  Kb8 {[%clk 0:00:04]} 62. a6 {[%clk 0:00:44]}  Ka8 {[%clk 0:00:04]} 63. Ne6 {[%clk 0:00:44]}  Kb8 {[%clk 0:00:04]} 64. a7+ {[%clk 0:00:44]}  Ka8 {[%clk 0:00:05]} 65. Nc7# {[%clk 0:00:44]} 1-0


[Site "https://www.chess.com"]

[Event "Titled Tuesday Blitz May 16 Early 2023"]
[White "Santarius, Erik"]
[Black "Quesada Perez, Yuniesky"]
[WhiteFideId "2025817"]
[BlackFideId "3504409"]
[WhiteElo "2300"]
[BlackElo "2585"]
[Result "0-1"]
[Round "06"]
[TimeControl "180+2"]
[Date "2023.05.16"]
[WhiteClock "0:00:15"]
[BlackClock "0:00:16"]

1. e4 {[%clk 0:02:46]}  d5 {[%clk 0:02:58]} 2. exd5 {[%clk 0:02:46]}  Qxd5 {[%clk 0:02:59]} 3. Nc3 {[%clk 0:02:46]}  Qa5 {[%clk 0:02:59]} 4. Nf3 {[%clk 0:02:44]}  Nf6 {[%clk 0:03:00]} 5. g3 {[%clk 0:02:43]}  Bg4 {[%clk 0:02:59]} 6. h3 {[%clk 0:02:41]}  Bh5 {[%clk 0:02:58]} 7. Bg2 {[%clk 0:02:41]}  c6 {[%clk 0:02:58]} 8. O-O {[%clk 0:02:40]}  e6 {[%clk 0:02:56]} 9. Re1 {[%clk 0:02:39]}  Nbd7 {[%clk 0:02:54]} 10. d4 {[%clk 0:02:38]}  Be7 {[%clk 0:02:53]} 11. Ne2 {[%clk 0:02:37]}  O-O {[%clk 0:02:46]} 12. Nf4 {[%clk 0:02:36]}  Bg6 {[%clk 0:02:45]} 13. Nxg6 {[%clk 0:02:33]}  hxg6 {[%clk 0:02:45]} 14. c3 {[%clk 0:02:33]}  Rad8 {[%clk 0:02:44]} 15. Qb3 {[%clk 0:02:31]}  Qb6 {[%clk 0:02:39]} 16. Bd2 {[%clk 0:02:29]}  Rfe8 {[%clk 0:02:38]} 17. Ng5 {[%clk 0:02:26]}  Nd5 {[%clk 0:02:37]} 18. Qc2 {[%clk 0:02:23]}  Nf8 {[%clk 0:02:32]} 19. Nf3 {[%clk 0:02:20]}  c5 {[%clk 0:02:28]} 20. dxc5 {[%clk 0:02:15]}  Bxc5 {[%clk 0:02:29]} 21. Re2 {[%clk 0:02:15]}  Qc7 {[%clk 0:02:26]} 22. Kh1 {[%clk 0:02:11]}  Nh7 {[%clk 0:02:19]} 23. Rf1 {[%clk 0:02:06]}  b5 {[%clk 0:02:17]} 24. Ng5 {[%clk 0:01:59]}  Nxg5 {[%clk 0:02:06]} 25. Bxg5 {[%clk 0:01:58]}  Be7 {[%clk 0:02:07]} 26. Bc1 {[%clk 0:01:54]}  Bf6 {[%clk 0:02:05]} 27. Qe4 {[%clk 0:01:52]}  Qc4 {[%clk 0:02:01]} 28. a3 {[%clk 0:01:48]}  Re7 {[%clk 0:01:56]} 29. Rfe1 {[%clk 0:01:47]}  Red7 {[%clk 0:01:55]} 30. Kg1 {[%clk 0:01:44]}  Nb6 {[%clk 0:01:51]} 31. Qc2 {[%clk 0:01:40]}  a5 {[%clk 0:01:37]} 32. Bf1 {[%clk 0:01:40]}  Qc6 {[%clk 0:01:36]} 33. Bg2 {[%clk 0:01:35]}  Qc8 {[%clk 0:01:28]} 34. Be3 {[%clk 0:01:29]}  Nc4 {[%clk 0:01:27]} 35. Bc1 {[%clk 0:01:29]}  a4 {[%clk 0:01:27]} 36. h4 {[%clk 0:01:28]}  Qc5 {[%clk 0:01:27]} 37. Bf4 {[%clk 0:01:26]}  Rc8 {[%clk 0:01:18]} 38. Rd1 {[%clk 0:01:22]}  Rxd1+ {[%clk 0:01:14]} 39. Qxd1 {[%clk 0:01:22]}  Rd8 {[%clk 0:01:14]} 40. Qc2 {[%clk 0:01:23]}  g5 {[%clk 0:01:11]} 41. hxg5 {[%clk 0:01:18]}  Bxg5 {[%clk 0:01:11]} 42. Bxg5 {[%clk 0:01:13]}  Qxg5 {[%clk 0:01:12]} 43. Bf3 {[%clk 0:01:12]}  g6 {[%clk 0:01:11]} 44. Kg2 {[%clk 0:01:11]}  Kg7 {[%clk 0:01:10]} 45. Qe4 {[%clk 0:01:11]}  Qc1 {[%clk 0:00:52]} 46. Qc2 {[%clk 0:00:43]}  Qa1 {[%clk 0:00:46]} 47. Bg4 {[%clk 0:00:32]}  Rd1 {[%clk 0:00:32]} 48. Qe4 {[%clk 0:00:23]}  Rg1+ {[%clk 0:00:24]} 49. Kh2 {[%clk 0:00:23]}  Rd1 {[%clk 0:00:17]} 50. Bf3 {[%clk 0:00:20]}  Qc1 {[%clk 0:00:15]} 51. Bg2 {[%clk 0:00:20]}  Rd2 {[%clk 0:00:14]} 52. Rxd2 {[%clk 0:00:20]}  Qxd2 {[%clk 0:00:15]} 53. Qd4+ {[%clk 0:00:18]}  Qxd4 {[%clk 0:00:15]} 54. cxd4 {[%clk 0:00:19]}  Nxb2 {[%clk 0:00:15]} 55. Bc6 {[%clk 0:00:19]}  b4 {[%clk 0:00:15]} 56. axb4 {[%clk 0:00:18]}  a3 {[%clk 0:00:16]} 57. b5 {[%clk 0:00:19]}  Nc4 {[%clk 0:00:16]} 58. b6 {[%clk 0:00:15]}  Nxb6 {[%clk 0:00:16]} 0-1


[Site "https://www.chess.com"]

[Event "Titled Tuesday Blitz May 16 Early 2023"]
[White "Sethuraman, S.P."]
[Black "Demin, Vladimir"]
[WhiteFideId "5021596"]
[BlackFideId "4167457"]
[WhiteElo "2543"]
[BlackElo "2542"]
[Result "1-0"]
[Round "06"]
[TimeControl "180+2"]
[Date "2023.05.16"]
[WhiteClock "0:01:06"]
[BlackClock "0:00:29"]

1. Nf3 {[%clk 0:02:56]}  d5 {[%clk 0:02:53]} 2. c3 {[%clk 0:02:56]}  Nf6 {[%clk 0:02:51]} 3. d4 {[%clk 0:02:56]}  c6 {[%clk 0:02:48]} 4. Bf4 {[%clk 0:02:55]}  Bf5 {[%clk 0:02:43]} 5. Qb3 {[%clk 0:02:55]}  Qb6 {[%clk 0:02:41]} 6. c4 {[%clk 0:02:51]}  e6 {[%clk 0:02:35]} 7. Nc3 {[%clk 0:02:49]}  Bb4 {[%clk 0:02:29]} 8. e3 {[%clk 0:02:38]}  Ne4 {[%clk 0:02:16]} 9. Be2 {[%clk 0:02:32]}  Nd7 {[%clk 0:02:08]} 10. Rc1 {[%clk 0:02:25]}  O-O {[%clk 0:01:43]} 11. O-O {[%clk 0:02:22]}  h6 {[%clk 0:01:38]} 12. c5 {[%clk 0:02:12]}  Qa5 {[%clk 0:01:32]} 13. Nxe4 {[%clk 0:02:09]}  dxe4 {[%clk 0:01:31]} 14. Ne5 {[%clk 0:01:48]}  Nxe5 {[%clk 0:01:15]} 15. Bxe5 {[%clk 0:01:49]}  b6 {[%clk 0:01:04]} 16. a3 {[%clk 0:01:49]}  Bd2 {[%clk 0:01:03]} 17. Rc2 {[%clk 0:01:23]}  bxc5 {[%clk 0:01:02]} 18. Rxc5 {[%clk 0:01:23]}  Qb6 {[%clk 0:01:00]} 19. Qc2 {[%clk 0:01:21]}  Rfd8 {[%clk 0:00:46]} 20. b4 {[%clk 0:01:12]}  f6 {[%clk 0:00:29]} 21. Bg3 {[%clk 0:01:06]} 1-0


[Site "https://www.chess.com"]

[Event "Titled Tuesday Blitz May 16 Early 2023"]
[White "Tokman, Ariel"]
[Black "Cherniaiev, Tykhon"]
[WhiteFideId "117420"]
[BlackFideId "14182360"]
[WhiteElo "2263"]
[BlackElo "2450"]
[Result "0-1"]
[Round "06"]
[TimeControl "180+2"]
[Date "2023.05.16"]
[WhiteClock "0:00:00"]
[BlackClock "0:00:06"]

1. d4 {[%clk 0:02:59]}  Nf6 {[%clk 0:03:00]} 2. c4 {[%clk 0:02:57]}  e6 {[%clk 0:03:00]} 3. Nf3 {[%clk 0:02:57]}  d5 {[%clk 0:03:00]} 4. Nc3 {[%clk 0:02:57]}  Be7 {[%clk 0:03:00]} 5. cxd5 {[%clk 0:02:56]}  exd5 {[%clk 0:03:00]} 6. Bf4 {[%clk 0:02:53]}  O-O {[%clk 0:02:59]} 7. e3 {[%clk 0:02:54]}  c5 {[%clk 0:02:56]} 8. Be2 {[%clk 0:02:50]}  Nc6 {[%clk 0:02:56]} 9. dxc5 {[%clk 0:02:47]}  Bxc5 {[%clk 0:02:53]} 10. O-O {[%clk 0:02:48]}  Be6 {[%clk 0:02:53]} 11. Nb5 {[%clk 0:02:45]}  Rc8 {[%clk 0:02:44]} 12. Rc1 {[%clk 0:02:45]}  Be7 {[%clk 0:02:30]} 13. Nbd4 {[%clk 0:02:42]}  Qb6 {[%clk 0:02:27]} 14. Nxe6 {[%clk 0:02:38]}  fxe6 {[%clk 0:02:27]} 15. Rb1 {[%clk 0:01:49]}  Ne4 {[%clk 0:02:24]} 16. Ne5 {[%clk 0:01:40]}  Nxe5 {[%clk 0:02:12]} 17. Bxe5 {[%clk 0:01:40]}  Bf6 {[%clk 0:02:10]} 18. Bxf6 {[%clk 0:01:31]}  Rxf6 {[%clk 0:02:11]} 19. Bf3 {[%clk 0:01:30]}  Ng5 {[%clk 0:02:05]} 20. Bg4 {[%clk 0:01:29]}  Rcf8 {[%clk 0:02:04]} 21. Qc2 {[%clk 0:00:55]}  Ne4 {[%clk 0:01:22]} 22. Bf3 {[%clk 0:00:49]}  Ng5 {[%clk 0:01:17]} 23. Be2 {[%clk 0:00:43]}  Qd6 {[%clk 0:00:50]} 24. f4 {[%clk 0:00:35]}  Ne4 {[%clk 0:00:40]} 25. Bf3 {[%clk 0:00:35]}  Qb6 {[%clk 0:00:41]} 26. Qe2 {[%clk 0:00:11]}  Rxf4 {[%clk 0:00:37]} 27. Kh1 {[%clk 0:00:08]}  R4f5 {[%clk 0:00:23]} 28. Bxe4 {[%clk 0:00:07]}  dxe4 {[%clk 0:00:24]} 29. Rxf5 {[%clk 0:00:06]}  exf5 {[%clk 0:00:24]} 30. Rd1 {[%clk 0:00:06]}  h6 {[%clk 0:00:24]} 31. Qd2 {[%clk 0:00:05]}  Kh7 {[%clk 0:00:23]} 32. h3 {[%clk 0:00:06]}  Rf6 {[%clk 0:00:22]} 33. b3 {[%clk 0:00:06]}  a6 {[%clk 0:00:19]} 34. Rf1 {[%clk 0:00:06]}  Qb5 {[%clk 0:00:18]} 35. Rf2 {[%clk 0:00:06]}  Qe5 {[%clk 0:00:19]} 36. Rf1 {[%clk 0:00:06]}  Rd6 {[%clk 0:00:18]} 37. Qf2 {[%clk 0:00:05]}  Rd5 {[%clk 0:00:19]} 38. Qh4 {[%clk 0:00:05]}  Rd2 {[%clk 0:00:17]} 39. Qh5 {[%clk 0:00:05]}  Rd5 {[%clk 0:00:16]} 40. Qh4 {[%clk 0:00:04]}  b5 {[%clk 0:00:16]} 41. Qh5 {[%clk 0:00:05]}  Qf6 {[%clk 0:00:15]} 42. Qe2 {[%clk 0:00:04]}  Qg5 {[%clk 0:00:15]} 43. Qf2 {[%clk 0:00:04]}  Kg6 {[%clk 0:00:14]} 44. Rc1 {[%clk 0:00:04]}  Rd3 {[%clk 0:00:13]} 45. Rc6+ {[%clk 0:00:04]}  Kh7 {[%clk 0:00:14]} 46. Rxa6 {[%clk 0:00:04]}  b4 {[%clk 0:00:06]} 47. Rc6 {[%clk 0:00:00]}  Rc3 {[%clk 0:00:06]} 0-1


[Site "https://www.chess.com"]